bitfinex/quotes_BTCUSD_20251226
["timestamp","ask_amount","ask_price","bid_price","bid_amount"]
[1766759353106,0.01124088,88961.0,88954.0,4.84e-05]
[1766759353307,0.01124062,88963.0,88954.0,4.84e-05]
[1766759353493,0.01124075,88962.0,88954.0,0.01129016]
[1766759353693,0.01124062,88963.0,88954.0,0.01129016]
[1766759353895,0.0112405,88964.0,88955.0,0.01124163]
[1766759354134,0.01124062,88963.0,88954.0,0.01129016]
[1766759354329,0.01124062,88963.0,88955.0,0.01124163]
[1766759354534,0.01124037,88965.0,88955.0,0.01124163]
[1766759354742,0.0112405,88964.0,88956.0,0.01124151]
[1766759354900,0.01124062,88963.0,88955.0,0.01124163]
[1766759355238,0.0112405,88964.0,88956.0,0.01124151]
[1766759355590,0.01124037,88965.0,88957.0,0.01124138]
[1766759355791,0.06744024,88968.0,88958.0,0.01124125]
[1766759355792,0.02248012,88967.0,88958.0,0.01124125]
[1766759356026,0.01124024,88966.0,88957.0,0.01124138]
[1766759356410,0.01124024,88966.0,88958.0,0.01124125]
[1766759357213,0.01124037,88965.0,88957.0,0.01124138]
[1766759357390,0.01124024,88966.0,88958.0,0.01124125]
[1766759357813,0.01124037,88965.0,88957.0,0.01124138]
[1766759358244,0.01124024,88966.0,88958.0,0.01124125]
[1766759358472,0.01124024,88966.0,88957.0,0.01124138]
[1766759358646,0.01124037,88965.0,88957.0,0.01124138]
[1766759358790,0.0112405,88964.0,88954.0,4.84e-05]
[1766759358991,0.0112405,88964.0,88955.0,0.01124163]
[1766759359421,0.01124062,88963.0,88955.0,0.01124163]
[1766759360372,0.01124075,88962.0,88954.0,0.01129016]
[1766759360534,0.01124062,88963.0,88954.0,0.01129016]
[1766759360735,0.01124062,88963.0,88955.0,0.01124163]
[1766759360941,0.0112405,88964.0,88955.0,0.01124163]
[1766759361263,0.01124062,88963.0,88954.0,0.01129016]
[1766759361586,0.01124062,88963.0,88955.0,0.01124163]
[1766759361878,0.01124,88966.0,88956.0,0.01124151]
[1766759362182,0.0112405,88964.0,88956.0,0.01124151]
[1766759362382,0.01124062,88963.0,88955.0,0.01124163]
[1766759362537,0.01124062,88963.0,88954.0,0.01129016]
[1766759362744,0.01124075,88962.0,88954.0,0.01129016]
[1766759362945,0.01124062,88963.0,88954.0,0.01129016]
[1766759363153,0.01124075,88962.0,88954.0,0.01129016]
[1766759363349,0.0112405,88964.0,88955.0,0.01124163]
[1766759363549,0.01124,88966.0,88957.0,0.01124138]
[1766759363772,0.01124037,88965.0,88955.0,0.01124163]
[1766759363971,0.01124037,88965.0,88956.0,0.01124151]
[1766759364299,0.0112405,88964.0,88956.0,0.01124151]
[1766759364639,0.01124037,88965.0,88957.0,0.01124138]
[1766759365071,0.0112405,88964.0,88957.0,0.01124138]
[1766759365276,0.01124037,88965.0,88957.0,0.01124138]
[1766759365473,0.02248024,88966.0,88957.0,0.01124138]
[1766759365675,0.02229758,88966.0,88957.0,0.06744828]
[1766759365876,0.01123961,88971.0,88962.0,0.01124075]
[1766759366054,0.01123949,88972.0,88962.0,0.01124075]
[1766759366055,0.01123949,88972.0,88964.0,0.0112405]
[1766759366255,0.01123961,88971.0,88963.0,0.01124062]
[1766759366455,0.01123961,88971.0,88962.0,0.01124075]
[1766759366692,0.01123949,88972.0,88963.0,0.01124062]
[1766759366908,0.01123961,88971.0,88963.0,0.01124062]
[1766759368479,0.02247949,88972.0,88964.0,0.0112405]
[1766759368813,0.02247949,88972.0,88963.0,0.01124062]
[1766759368963,0.02247949,88972.0,88964.0,0.0112405]
[1766759369163,0.01124,88972.0,88965.0,0.01124037]
[1766759369404,0.02247949,88972.0,88964.0,0.0112405]
[1766759369584,0.01123885,88977.0,88968.0,0.01123999]
[1766759369794,0.01123848,88980.0,88969.0,0.01123987]
[1766759369795,0.0112386,88979.0,88969.0,0.01123987]
[1766759370031,0.03145113,88986.0,88969.0,0.01123987]
[1766759370032,0.02425879,88985.0,88975.0,0.01123911]
[1766759370183,0.02247772,88986.0,88976.0,0.01123898]
[1766759370387,0.02247772,88986.0,88977.0,0.01123885]
[1766759370388,0.01123772,88986.0,88977.0,0.01123885]
[1766759370618,0.01123759,88987.0,88978.0,0.01123873]
[1766759370812,0.01123759,88987.0,88979.0,0.0112386]
[1766759371011,0.01123784,88985.0,88977.0,0.01123885]
[1766759371193,0.01123772,88986.0,88977.0,0.01123885]
[1766759371523,0.01123772,88986.0,88978.0,0.01123873]
[1766759371822,0.06742504,88988.0,88969.0,0.06743909]
[1766759371823,0.000549,88978.0,88969.0,0.06743909]
[1766759372027,0.02979099,88984.0,88979.0,0.0112386]
[1766759372233,0.02979099,88984.0,88975.0,0.01123911]
[1766759372384,0.04102896,88984.0,88975.0,0.01123911]
[1766759372587,0.04102896,88984.0,88976.0,0.01123898]
[1766759372805,0.0112381,88983.0,88975.0,0.01123911]
[1766759373586,0.02979099,88984.0,88977.0,0.01123885]
[1766759373957,0.03145113,88985.0,88979.0,0.0112386]
[1766759374083,0.03145113,88985.0,88975.0,0.01123911]
[1766759374283,0.04268897,88985.0,88977.0,0.01123885]
[1766759374548,0.04268897,88985.0,88976.0,0.01123898]
[1766759374935,0.01123784,88985.0,88976.0,0.01123898]
[1766759375137,0.01123797,88984.0,88975.0,0.01123911]
[1766759375370,0.01123784,88985.0,88977.0,0.01123885]
[1766759375569,0.01123797,88984.0,88976.0,0.01123898]
[1766759375787,0.0112381,88983.0,88974.0,0.01123923]
[1766759376085,0.01123848,88980.0,88972.0,0.01123949]
[1766759376238,0.01123848,88980.0,88973.0,0.01124]
[1766759376441,0.01123848,88980.0,88973.0,0.02247936]
[1766759376656,0.01123835,88981.0,88973.0,0.02247936]
[1766759377260,0.01123835,88981.0,88973.0,0.01124]
[1766759377472,0.0112386,88979.0,88973.0,0.01124]
[1766759377726,0.0112386,88979.0,88969.0,0.01123987]
[1766759377949,0.01123848,88980.0,88972.0,0.01123949]
[1766759378406,0.03145113,88985.0,88976.0,0.01123898]
[1766759378407,0.01123784,88985.0,88976.0,0.01123898]
[1766759378629,0.01123772,88986.0,88976.0,0.01123898]
[1766759378630,0.03145113,88984.0,88976.0,0.01123898]
[1766759379088,0.0112381,88983.0,88975.0,0.01123911]
[1766759379526,0.0426891,88984.0,88977.0,0.01123885]
[1766759379780,0.03145113,88984.0,88978.0,0.01123873]
[1766759379990,0.03145113,88984.0,88977.0,0.01123885]
[1766759380230,0.03145113,88984.0,88976.0,0.01123898]
[1766759380445,0.03145113,88984.0,88971.0,0.02247961]
[1766759380446,0.000549,88976.0,88971.0,0.02247961]
[1766759380595,0.01123822,88982.0,88974.0,0.01123923]
[1766759380794,0.0112381,88983.0,88974.0,0.01123923]
[1766759381006,0.01123835,88981.0,88973.0,0.01123936]
[1766759381227,0.01123835,88981.0,88972.0,0.01123949]
[1766759382126,0.01123835,88981.0,88973.0,0.01123936]
[1766759382327,0.08764149,88984.0,88974.0,0.01123923]
[1766759382582,0.0112381,88983.0,88974.0,0.01123923]
[1766759382882,0.0112381,88983.0,88975.0,0.01123911]
[1766759384067,0.01123822,88982.0,88975.0,0.01123911]
[1766759384436,0.0112381,88983.0,88975.0,0.01123911]
[1766759384825,0.01123822,88982.0,88974.0,0.01123923]
[1766759385063,0.01123822,88982.0,88975.0,0.01123911]
[1766759385263,0.0112381,88983.0,88975.0,0.01123911]
[1766759386917,0.01123797,88984.0,88976.0,0.01123898]
[1766759387135,0.03145113,88984.0,88976.0,0.01123898]
[1766759388104,0.0426891,88984.0,88975.0,0.01123911]
[1766759388467,0.0112381,88983.0,88976.0,0.01123898]
[1766759388802,0.0426891,88984.0,88976.0,0.01123898]
[1766759389172,0.0426891,88984.0,88975.0,0.01123911]
[1766759389365,0.09887949,88984.0,88975.0,0.01123911]
[1766759389985,0.01123822,88982.0,88974.0,0.01123923]
[1766759391188,0.0112381,88983.0,88975.0,0.01123911]
[1766759391387,0.0112381,88983.0,88974.0,0.01123923]
[1766759391594,0.01123848,88980.0,88970.0,0.06743785]
[1766759391812,0.01123848,88980.0,88972.0,0.01123949]
[1766759392218,0.01123848,88980.0,88973.0,0.01123936]
[1766759392616,0.01123848,88980.0,88972.0,0.01123949]
[1766759392813,0.000549,88972.0,88971.0,0.01124]
[1766759393363,0.0112386,88979.0,88972.0,0.01123949]
[1766759393760,0.0112386,88979.0,88971.0,0.02247961]
[1766759394340,0.01123848,88980.0,88970.0,0.01123974]
[1766759394532,0.000549,88971.0,88970.0,0.01123974]
[1766759395076,0.01123873,88978.0,88970.0,0.01123974]
[1766759395247,0.0112386,88979.0,88971.0,0.01123961]
[1766759395567,0.01123848,88980.0,88972.0,0.01123949]
[1766759395871,0.01123848,88980.0,88973.0,0.01123936]
[1766759396071,0.01124,88981.0,88974.0,0.01123923]
[1766759396469,0.01124,88981.0,88972.0,0.01123949]
[1766759396672,0.02247835,88981.0,88972.0,0.01123949]
[1766759397199,0.0112386,88979.0,88969.0,0.05619903]
[1766759397421,0.01123873,88978.0,88970.0,0.01123974]
[1766759397997,0.0112386,88979.0,88971.0,0.01123961]
[1766759398607,0.0112386,88979.0,88972.0,0.01123949]
[1766759398816,0.01123848,88980.0,88972.0,0.01123949]
[1766759399419,0.0112386,88979.0,88971.0,0.01123961]
[1766759399643,0.01123848,88980.0,88972.0,0.01123949]
[1766759399871,0.09995113,88984.0,88969.0,0.05619903]
[1766759399872,0.01123759,88987.0,88975.0,0.06743423]
[1766759400102,0.024286,88991.0,88980.0,0.06842]
[1766759400241,0.03029756,88995.0,88984.0,0.01068897]
[1766759400242,0.024286,88995.0,88984.0,0.01068897]
[1766759400446,0.024286,88995.0,88959.0,0.37096142]
[1766759400447,0.03379183,89000.0,88997.0,0.01123633]
[1766759400448,6e-05,89000.0,88997.0,0.01123633]
[1766759400656,0.09197479,89014.0,89003.0,0.01123557]
[1766759400657,0.0685,89012.0,89003.0,0.01123557]
[1766759400906,0.0685,89012.0,89000.0,0.01123595]
[1766759400907,0.01123469,89010.0,89000.0,0.01129595]
[1766759401077,0.0797362,88998.0,88989.0,0.01124]
[1766759401229,0.0797362,88998.0,88960.0,0.44963544]
[1766759401230,0.0674277,88985.0,88975.0,0.01096]
[1766759401457,0.0674277,88985.0,88960.0,0.43401947]
[1766759401458,0.0674277,88985.0,88960.0,0.01096]
[1766759401459,0.01123923,88974.0,88960.0,0.01096]
[1766759401658,0.01123797,88984.0,88974.0,0.00038122]
[1766759401914,0.43401947,88990.0,88984.0,0.00055]
[1766759401915,0.01123721,88990.0,88984.0,0.00055]
[1766759402140,0.01123759,88987.0,88984.0,0.00055]
[1766759402322,0.01123759,88987.0,88974.0,0.01123923]
[1766759402323,0.07978,88989.0,88959.0,0.01124113]
[1766759402541,0.0685,88971.0,88965.0,0.01124037]
[1766759402698,0.01123898,88976.0,88971.0,0.000382]
[1766759403084,0.08647757,89000.0,88987.0,0.01123759]
[1766759403285,0.08647757,89000.0,88988.0,0.01123747]
[1766759403286,0.01123595,89000.0,88988.0,0.01123747]
[1766759403486,0.01123595,89000.0,88986.0,0.01123772]
[1766759403487,0.01123658,88995.0,88986.0,0.01123772]
[1766759403694,0.01123658,88995.0,88982.0,0.06742881]
[1766759403695,0.08028772,88986.0,88975.0,0.01123911]
[1766759403890,0.05619556,88975.0,88974.0,0.01128]
[1766759404089,0.05619556,88975.0,88927.0,1.12491698]
[1766759404090,0.01123999,88968.0,88959.0,0.01124113]
[1766759404352,0.0685,88981.0,88972.0,0.01123949]
[1766759404495,0.0112386,88979.0,88968.0,0.000549]
[1766759404734,0.22475623,88986.0,88965.0,0.01128]
[1766759404735,0.01123911,88975.0,88967.0,0.01124012]
[1766759404957,0.01123848,88980.0,88965.0,0.06748179]
[1766759404958,0.01123759,88987.0,88975.0,0.05619556]
[1766759405143,0.06741876,88996.0,88983.0,0.0112381]
[1766759405321,0.22471852,89001.0,88959.0,0.00010778]
[1766759405322,0.01123747,88988.0,88984.0,0.01128]
[1766759405521,0.01123747,88988.0,88979.0,0.0112386]
[1766759405522,0.0685,88989.0,88985.0,0.01128]
[1766759405721,0.01123633,88997.0,88985.0,0.02251784]
[1766759406005,0.0685,88998.0,88991.0,0.01123709]
[1766759406208,0.01123671,88994.0,88985.0,0.02251784]
[1766759406413,0.000549,88991.0,88985.0,0.01128]
[1766759406547,0.0685,88998.0,88987.0,0.01123759]
[1766759406759,0.0685,88998.0,88985.0,0.01128]
[1766759406760,0.01123532,89005.0,88996.0,0.01123646]
[1766759406981,0.01123532,89005.0,88997.0,0.01128]
[1766759407186,0.01123557,89003.0,88997.0,0.01128]
[1766759407388,0.01123582,89001.0,88997.0,0.01128]
[1766759407684,0.01123582,89001.0,88997.0,0.010731]
[1766759407883,0.01123545,89004.0,88997.0,0.010731]
[1766759408216,0.01123545,89004.0,89001.0,0.000549]
[1766759408419,0.01123582,89001.0,88997.0,0.010731]
[1766759408568,0.01123557,89003.0,88997.0,0.010731]
[1766759408979,0.00035958,89005.0,88997.0,0.010731]
[1766759409198,0.01123557,89003.0,88997.0,0.010731]
[1766759409359,0.01123582,89001.0,88997.0,0.010731]
[1766759409560,0.0674135,89003.0,88997.0,0.010731]
[1766759409561,0.05618083,88999.0,88997.0,0.010731]
[1766759409764,0.0112357,89002.0,88999.0,0.000549]
[1766759409960,0.0112357,89002.0,88998.0,0.01128]
[1766759410402,0.00035958,89005.0,88998.0,0.01128]
[1766759410584,0.01123545,89004.0,88998.0,0.01128]
[1766759410915,0.0115949,89005.0,88998.0,0.01128]
[1766759411122,0.01123481,89009.0,89005.0,0.00018942]
[1766759411323,0.01134262,89009.0,89006.0,0.0103921]
[1766759411533,0.01134262,89009.0,88996.0,0.06741814]
[1766759411534,0.0112362,88998.0,88986.0,0.01123772]
[1766759411685,0.05618356,88994.0,88987.0,0.01128]
[1766759411882,0.01123696,88992.0,88987.0,0.01128]
[1766759412103,0.04268746,88997.0,88987.0,0.01128]
[1766759412340,0.03145113,88997.0,88990.0,0.01123721]
[1766759412552,0.01123545,89004.0,88996.0,0.01123646]
[1766759412751,0.01123545,89004.0,88997.0,0.01128]
[1766759412969,0.03145113,89000.0,88997.0,0.01128]
[1766759413286,0.07973519,89006.0,88997.0,0.01128]
[1766759413287,0.01134262,89009.0,88997.0,0.01128]
[1766759413425,0.01134262,89009.0,88990.0,0.43401947]
[1766759413426,0.05617561,89001.0,88998.0,0.01128]
[1766759413773,0.05617746,89004.0,88999.0,0.010731]
[1766759413910,0.06741421,89002.0,88999.0,0.010731]
[1766759414121,0.00010781,89009.0,88999.0,0.010731]
[1766759414320,0.06174869,89029.0,89002.0,0.000549]
[1766759414321,0.07455,89014.0,89002.0,0.000549]
[1766759414536,0.04268544,89013.0,89002.0,0.0112357]
[1766759414751,0.01123469,89010.0,89002.0,0.0112357]
[1766759414964,0.04268544,89013.0,89003.0,0.01123557]
[1766759415170,0.01123444,89012.0,89003.0,0.01123557]
[1766759415468,0.01123456,89011.0,89002.0,0.0112357]
[1766759415619,0.09885754,89013.0,88990.0,0.43401947]
[1766759415620,0.25613826,89013.0,88991.0,0.01123709]
[1766759415820,0.03145113,89012.0,89002.0,0.0112357]
[1766759416021,0.07455,89011.0,88998.0,0.0112362]
[1766759416324,0.07455,89004.0,88996.0,0.01123646]
[1766759416523,0.07455,89004.0,88997.0,0.01128]
[1766759416734,0.07455,89004.0,88997.0,0.02251633]
[1766759416926,0.07455,89004.0,88998.0,0.0112362]
[1766759417347,0.08578545,89004.0,88996.0,0.01123646]
[1766759417582,0.07455,89004.0,88997.0,0.02251633]
[1766759417748,0.07455,89004.0,89001.0,0.01123582]
[1766759418165,0.07455,89004.0,88998.0,0.0112362]
[1766759418367,0.07455,89004.0,89000.0,0.01123595]
[1766759418592,0.07455,89004.0,88998.0,0.0112362]
[1766759419600,0.07455,89004.0,88999.0,0.01123608]
[1766759419746,0.01123494,89008.0,88999.0,0.01123608]
[1766759419975,0.01123519,89006.0,88998.0,0.0112362]
[1766759420331,0.0112357,89002.0,88992.0,0.01123696]
[1766759420492,0.01123557,89003.0,88993.0,0.01123683]
[1766759420828,0.01123545,89004.0,88993.0,0.01123683]
[1766759420829,0.01123545,89004.0,88994.0,0.01128]
[1766759421033,0.07455,89007.0,89000.0,0.01123595]
[1766759421236,0.08578507,89007.0,89001.0,0.01128]
[1766759421411,0.01123532,89005.0,89001.0,0.01128]
[1766759421614,0.08578519,89006.0,89001.0,0.01128]
[1766759421820,0.01123608,88999.0,88991.0,0.00010781]
[1766759422111,0.07455,89000.0,88991.0,0.00010781]
[1766759422313,0.43360901,89010.0,88991.0,0.00010781]
[1766759422314,0.07455,88999.0,88991.0,0.0113449]
[1766759422512,0.07455,88999.0,88992.0,0.06746482]
[1766759422683,0.03145113,89012.0,89000.0,0.05617924]
[1766759422889,0.07455,89014.0,89000.0,0.05617924]
[1766759422890,0.07455,89014.0,89008.0,0.01123494]
[1766759423112,0.08578418,89014.0,89009.0,0.01128]
[1766759423320,0.04268544,89013.0,89009.0,0.01128]
[1766759423523,0.11723544,89013.0,89010.0,0.01128]
[1766759423732,0.10600113,89013.0,89010.0,0.01128]
[1766759424194,0.11723544,89013.0,89010.0,0.00207745]
[1766759424402,0.14195664,89012.0,89010.0,0.01128]
[1766759424605,0.08578343,89020.0,89012.0,0.000549]
[1766759424811,0.03145113,89017.0,89014.0,0.01123418]
[1766759425016,0.07455,89020.0,89017.0,0.0112338]
[1766759425222,0.05981743,89020.0,89017.0,0.0112338]
[1766759425434,0.01519147,89017.0,89014.0,0.01123418]
[1766759425642,0.00055,89014.0,89001.0,0.05617912]
[1766759425858,0.01123494,89008.0,88995.0,0.01123658]
[1766759426059,0.43360901,89010.0,88997.0,0.01123633]
[1766759426268,0.01123481,89009.0,89001.0,0.01123582]
[1766759426482,0.01123494,89008.0,88999.0,0.01123608]
[1766759426691,0.01123494,89008.0,88997.0,0.01123633]
[1766759426692,0.05617848,89003.0,89000.0,0.010731]
[1766759426907,0.01123532,89005.0,88996.0,0.01123646]
[1766759427110,0.01123545,89004.0,88997.0,0.01128]
[1766759427319,0.01123545,89004.0,88994.0,0.06741974]
[1766759427320,0.0112357,89002.0,88998.0,0.01128]
[1766759427524,0.0112357,89002.0,88993.0,0.01123683]
[1766759427740,0.0674116,89006.0,88991.0,0.00010781]
[1766759427741,0.05618151,88998.0,88991.0,0.00010781]
[1766759427947,0.03145113,88999.0,88998.0,0.000549]
[1766759428353,0.01123633,88997.0,88994.0,0.01128]
[1766759428618,0.01123633,88997.0,88991.0,0.00010781]
[1766759428619,0.05618403,88994.0,88991.0,0.00010781]
[1766759428842,0.0112362,88998.0,88992.0,0.01128]
[1766759428995,0.0674177,88998.0,88992.0,0.01128]
[1766759429195,0.0112357,89002.0,88998.0,0.000549]
[1766759429403,0.01123646,88996.0,88992.0,0.01128]
[1766759429778,0.01123671,88994.0,88991.0,0.00010781]
[1766759429993,0.000549,88992.0,88991.0,0.01138781]
[1766759430393,0.05618545,88991.0,88990.0,1e-08]
[1766759430603,7.265e-05,88991.0,88990.0,1e-08]
[1766759430826,0.0562581,88991.0,88990.0,1e-08]
[1766759431033,0.0562581,88991.0,88963.0,0.22481022]
[1766759431034,0.0562581,88991.0,88977.0,0.01128]
[1766759431035,0.01123784,88985.0,88977.0,0.01128]
[1766759431275,7.265e-05,88991.0,88987.0,0.01123759]
[1766759431494,7.265e-05,88991.0,88987.0,0.01128]
[1766759431705,0.01130974,88991.0,88987.0,0.01128]
[1766759431911,0.01130974,88991.0,88987.0,0.010731]
[1766759431912,0.01123747,88988.0,88987.0,0.010731]
[1766759432118,0.01123747,88988.0,88978.0,0.01123873]
[1766759432119,0.01123759,88987.0,88979.0,0.0112386]
[1766759432336,0.01123772,88986.0,88984.0,0.01128]
[1766759432542,0.02587991,88989.0,88974.0,0.01123923]
[1766759432543,0.01123797,88984.0,88974.0,0.01123923]
[1766759432757,0.01123784,88985.0,88975.0,0.02251911]
[1766759433052,0.01123784,88985.0,88977.0,0.01123885]
[1766759433290,0.01123784,88985.0,88976.0,0.01123898]
[1766759433501,0.01123797,88984.0,88977.0,0.01128]
[1766759433688,0.22471777,89001.0,88977.0,0.01128]
[1766759433898,0.01123772,88986.0,88977.0,0.01128]
[1766759434211,0.02588041,88985.0,88977.0,0.01128]
[1766759434440,0.02588041,88985.0,88970.0,0.65840334]
[1766759434441,0.03145113,88984.0,88963.0,0.01124062]
[1766759434661,0.03145113,88984.0,88932.0,0.44977984]
[1766759434662,0.06743975,88969.0,88957.0,0.01124138]
[1766759434868,0.01123999,88968.0,88958.0,0.01128]
[1766759435075,0.01124012,88967.0,88959.0,0.01124113]
[1766759435274,0.01124012,88967.0,88954.0,0.01124176]
[1766759435275,0.01124113,88959.0,88948.0,0.01124252]
[1766759435476,0.011241,88960.0,88959.0,0.000549]
[1766759435706,0.011241,88960.0,88958.0,0.01128]
[1766759435824,0.011241,88960.0,88947.0,0.01124265]
[1766759435825,0.01124151,88956.0,88947.0,0.01124265]
[1766759436023,0.01124151,88956.0,88944.0,0.05621457]
[1766759436024,0.01124163,88955.0,88948.0,0.01128]
[1766759436250,0.01124163,88955.0,88945.0,0.0112429]
[1766759436455,0.01124189,88953.0,88946.0,0.01128]
[1766759436650,0.01124201,88952.0,88945.0,0.00035958]
[1766759436850,0.05620814,88956.0,88945.0,0.00035958]
[1766759436851,0.06744854,88957.0,88945.0,0.00035958]
[1766759437113,0.03145113,88956.0,88947.0,0.01124265]
[1766759437261,0.01124163,88955.0,88946.0,0.01124277]
[1766759437435,0.01124176,88954.0,88945.0,0.00035958]
[1766759437634,0.01124201,88952.0,88945.0,0.00035958]
[1766759437964,0.01124328,88942.0,88933.0,0.01124441]
[1766759438163,0.0112429,88945.0,88935.0,0.01128]
[1766759438164,0.01124315,88943.0,88935.0,0.01128]
[1766759438386,0.01124353,88940.0,88935.0,0.01128]
[1766759438591,0.01124353,88940.0,88934.0,0.00050778]
[1766759438592,0.01124366,88939.0,88934.0,0.00050778]
[1766759438763,0.01124353,88940.0,88934.0,0.01178778]
[1766759438969,0.01124391,88937.0,88934.0,0.00050778]
[1766759439180,0.06746408,88937.0,88934.0,0.00050778]
[1766759439507,0.06746408,88937.0,88927.0,0.0004]
[1766759439508,0.01124467,88931.0,88924.0,7.944e-05]
[1766759439685,0.01124492,88929.0,88925.0,0.01128]
[1766759439888,0.01124454,88932.0,88929.0,0.000549]
[1766759440093,0.05622715,88925.0,88924.0,7.944e-05]
[1766759440292,0.01124517,88927.0,88924.0,4.4e-07]
[1766759440494,0.05622652,88926.0,88924.0,4.4e-07]
[1766759440696,0.0989228,88927.0,88924.0,4.4e-07]
[1766759441232,0.05622715,88925.0,88924.0,4.4e-07]
[1766759441432,0.05622715,88925.0,88916.0,0.01144656]
[1766759441433,0.06747754,88919.0,88916.0,1e-08]
[1766759441749,0.0225253,88926.0,88885.0,0.04496]
[1766759441750,0.01124821,88903.0,88894.0,0.01124935]
[1766759441876,0.03145113,88902.0,88894.0,0.00035971]
[1766759442080,0.01124859,88900.0,88894.0,0.00035971]
[1766759442282,0.01124859,88900.0,88894.0,7.1e-07]
[1766759442283,0.06749388,88897.0,88894.0,7.1e-07]
[1766759442535,0.05624613,88895.0,88894.0,7.1e-07]
[1766759442965,0.05624613,88895.0,88871.0,0.01128]
[1766759442966,0.01124985,88890.0,88879.0,0.01125125]
[1766759443122,0.03600178,88913.0,88887.0,0.01125023]
[1766759443323,0.0112496,88892.0,88887.0,4.034e-05]
[1766759443546,0.01124985,88890.0,88887.0,4.034e-05]
[1766759443748,0.05624992,88889.0,88887.0,4.034e-05]
[1766759445207,0.11951688,88889.0,88887.0,4.034e-05]
[1766759445445,0.05624992,88889.0,88887.0,4.034e-05]
[1766759445635,0.08021958,88889.0,88887.0,4.034e-05]
[1766759445964,0.05624992,88889.0,88888.0,0.06854]
[1766759446164,0.05624992,88889.0,88887.0,4.034e-05]
[1766759446165,0.06752992,88889.0,88887.0,4.034e-05]
[1766759446388,0.01128,88889.0,88887.0,4.034e-05]
[1766759446626,0.28120285,88892.0,88887.0,4.034e-05]
[1766759446627,0.15704126,88892.0,88887.0,4.034e-05]
[1766759446783,0.07019,88909.0,88887.0,4.034e-05]
[1766759446784,0.04496992,88889.0,88888.0,0.06854]
[1766759446990,0.36262345,88897.0,88887.0,4.034e-05]
[1766759446991,0.01124947,88893.0,88887.0,4.034e-05]
[1766759447205,0.43433456,88920.0,88888.0,0.01128]
[1766759447206,0.05624992,88889.0,88888.0,0.01128]
[1766759447603,0.05624992,88889.0,88887.0,4.034e-05]
[1766759448585,0.06756992,88889.0,88887.0,4.034e-05]
[1766759448791,0.0814396,88892.0,88887.0,4.034e-05]
[1766759448792,2.12e-06,88892.0,88887.0,4.034e-05]
[1766759449244,0.224982,88897.0,88887.0,4.034e-05]
[1766759449446,0.05624992,88889.0,88887.0,4.034e-05]
[1766759450378,0.12643992,88889.0,88887.0,4.034e-05]
[1766759451216,0.05624992,88889.0,88887.0,4.034e-05]
[1766759451388,1.0,88889.0,88887.0,4.034e-05]
[1766759451588,1.05624992,88889.0,88887.0,4.034e-05]
[1766759451984,1.12643992,88889.0,88887.0,4.034e-05]
[1766759452189,1.05624992,88889.0,88887.0,4.034e-05]
[1766759452798,0.08650992,88889.0,88887.0,4.034e-05]
[1766759453010,0.02014649,88889.0,88887.0,4.034e-05]
[1766759453512,0.02014649,88889.0,88888.0,0.00566051]
[1766759454561,0.01098713,88889.0,88888.0,0.00566051]
[1766759454762,0.00133116,88889.0,88888.0,0.00566051]
[1766759454960,0.01124808,88904.0,88888.0,0.00566051]
[1766759455180,0.01124669,88915.0,88904.0,0.00059]
[1766759455386,0.0112472,88911.0,88905.0,0.01132]
[1766759455521,0.06747814,88918.0,88906.0,0.01132]
[1766759455728,0.01124631,88918.0,88908.0,0.43433456]
[1766759455948,0.01124644,88917.0,88907.0,0.045]
[1766759456140,0.01120682,88914.0,88907.0,0.045]
[1766759456383,0.05623774,88909.0,88907.0,0.045]
[1766759456578,0.01124732,88910.0,88908.0,0.045]
[1766759456779,0.01124732,88910.0,88890.0,0.05624922]
[1766759456780,0.0562417,88902.0,88881.0,0.01125099]
[1766759456937,0.01124846,88901.0,88890.0,0.43433456]
[1766759457124,0.01124846,88901.0,88876.0,0.22503192]
[1766759457125,0.01124935,88894.0,88868.0,0.01125264]
[1766759457325,0.01124935,88894.0,88880.0,0.43433456]
[1766759457529,0.06749615,88894.0,88888.0,0.05632]
[1766759457765,0.01124884,88898.0,88889.0,0.00566051]
[1766759457963,0.01124922,88895.0,88888.0,0.49065456]
[1766759458202,0.0112491,88896.0,88888.0,0.49065456]
[1766759458387,0.01124922,88895.0,88888.0,0.49065456]
[1766759458581,0.01124922,88895.0,88888.0,0.05632]
[1766759458840,0.01124935,88894.0,88888.0,0.05632]
[1766759459253,0.01124973,88891.0,88888.0,0.05632]
[1766759459504,0.01124973,88891.0,88886.0,0.00024471]
[1766759459505,0.01124973,88891.0,88889.0,0.05632]
[1766759459667,0.07019,88898.0,88891.0,0.000549]
[1766759459869,0.0112491,88896.0,88891.0,0.000549]
[1766759460142,0.05624866,88891.0,88889.0,0.012244]
[1766759460345,0.0112496,88892.0,88889.0,0.012244]
[1766759460567,0.01124897,88897.0,88889.0,0.012244]
[1766759460568,0.0112477,88907.0,88889.0,0.012244]
[1766759460777,0.0002,88924.0,88889.0,0.012244]
[1766759460778,0.01124732,88910.0,88907.0,0.000549]
[1766759461015,0.0002,88924.0,88908.0,0.01132]
[1766759461219,0.02988945,88945.0,88908.0,0.01132]
[1766759461220,0.01124441,88933.0,88918.0,0.13499755]
[1766759461537,0.07019,88947.0,88923.0,0.43433456]
[1766759461765,0.01124479,88930.0,88925.0,0.0002]
[1766759462100,0.0002,88925.0,88914.0,0.0002]
[1766759462319,0.01124543,88925.0,88914.0,0.0002]
[1766759462516,0.01124505,88928.0,88914.0,0.0002]
[1766759462517,0.01124644,88917.0,88915.0,0.05632]
[1766759462742,0.03622715,88925.0,88916.0,0.05632]
[1766759462943,0.03622715,88925.0,88879.0,0.13504]
[1766759462944,0.0562379,88908.0,88907.0,0.03375844]
[1766759463144,0.01124732,88910.0,88907.0,0.05636034]
[1766759463287,0.01179556,88916.0,88907.0,0.06199637]
[1766759463492,0.0112472,88911.0,88908.0,0.05632]
[1766759463700,0.07019,88922.0,88908.0,0.05632]
[1766759463896,0.07019,88922.0,88912.0,0.43433456]
[1766759464314,0.01124593,88921.0,88912.0,0.43433456]
[1766759464947,0.01124593,88921.0,88911.0,0.43183528]
[1766759465089,0.01124644,88917.0,88911.0,0.43183528]
[1766759465310,0.01124606,88920.0,88911.0,0.43183528]
[1766759465311,0.01124631,88918.0,88911.0,0.43183528]
[1766759465710,0.06748108,88914.0,88911.0,0.43183528]
[1766759465925,0.06748108,88914.0,88908.0,0.05632]
[1766759465926,0.01124732,88910.0,88907.0,4.034e-05]
[1766759466278,0.01124897,88897.0,88878.0,0.01125137]
[1766759466418,0.01124872,88899.0,88874.0,0.06751076]
[1766759466419,0.01124884,88898.0,88887.0,0.05632]
[1766759466621,0.01124834,88902.0,88887.0,0.05632]
[1766759466842,0.01124846,88901.0,88887.0,0.05632]
[1766759467045,0.01124834,88902.0,88887.0,0.05632]
[1766759467262,0.05624314,88900.0,88887.0,0.05632]
[1766759467424,0.01124897,88897.0,88888.0,0.00566726]
[1766759467626,0.01124897,88897.0,88890.0,0.43433456]
[1766759467824,0.01124884,88898.0,88888.0,0.00566726]
[1766759468048,0.01124872,88899.0,88888.0,0.00566726]